bitfinex-derivatives/quotes_BNBF0:USTF0_20251010
["timestamp","ask_amount","ask_price","bid_price","bid_amount"]
[1760139504746,1.2746342,1130.1,1125.8,0.55675431]
[1760139504947,1.2746342,1129.8,1125.2,0.63800418]
[1760139505446,1.2746342,1129.5,1125.3,0.55712878]
[1760139505647,1.2746342,1129.4,1125.4,0.55712878]
[1760139505844,1.2746342,1129.3,1124.8,0.63800418]
[1760139506241,1.2746342,1129.4,1124.9,0.55760267]
[1760139506442,1.2746342,1129.4,1125.0,0.55760267]
[1760139506646,1.2746342,1129.4,1125.1,0.55760267]
[1760139506944,1.2746342,1129.7,1125.2,0.55760267]
[1760139507141,1.2746342,1129.7,1125.3,0.55760267]
[1760139507345,1.2746342,1129.7,1125.4,0.55760267]
[1760139507543,1.2746342,1129.7,1125.5,0.55760267]
[1760139507844,1.2746342,1129.2,1124.9,0.63800418]
[1760139508346,1.2746342,1129.1,1124.8,0.55824193]
[1760139508540,1.2746342,1128.9,1124.9,0.55824193]
[1760139508742,1.2746342,1128.9,1124.5,1.233]
[1760139508946,1.2746342,1128.9,1124.6,0.55934088]
[1760139509146,1.2746342,1129.0,1124.9,0.63800418]
[1760139509547,1.2746342,1129.1,1124.9,0.63800418]
[1760139509946,1.2746342,1129.6,1125.0,0.55934088]
[1760139510144,1.2746342,1129.5,1125.0,1.19734506]
[1760139510345,1.2746342,1129.6,1125.2,0.63800418]
[1760139510549,1.2746342,1129.4,1125.2,1.19734506]
[1760139510744,1.2746342,1129.4,1125.3,0.55934088]
[1760139510948,1.2746342,1129.4,1125.4,0.55934088]
[1760139511149,1.2746342,1129.4,1124.8,0.63800418]
[1760139511449,1.2746342,1129.2,1124.9,0.55785319]
[1760139511646,1.2746342,1129.2,1125.0,0.55785319]
[1760139511849,1.2746342,1129.1,1125.1,0.55785319]
[1760139512150,1.2746342,1129.1,1124.6,0.63800418]
[1760139512446,1.2746342,1128.9,1124.7,0.5578833]
[1760139512645,1.2746342,1128.9,1124.5,1.233]
[1760139512646,1.2746342,1129.0,1124.8,0.5578833]
[1760139512846,1.2746342,1129.1,1124.9,0.5578833]
[1760139513045,1.2746342,1129.0,1125.0,0.5583612]
[1760139513346,1.2746342,1129.0,1124.5,1.233]
[1760139513545,1.2746342,1128.8,1124.6,0.55777351]
[1760139513749,1.2746342,1128.8,1124.7,0.55777351]
[1760139513947,1.2746342,1128.7,1124.8,0.55777351]
[1760139514151,1.2746342,1128.8,1124.5,1.233]
[1760139514348,1.2746342,1129.0,1124.6,0.55789607]
[1760139514651,1.2746342,1129.2,1124.6,1.19590025]
[1760139514850,1.2746342,1129.3,1124.7,1.19590025]
[1760139515051,1.2746342,1129.3,1124.5,1.233]
[1760139515052,1.2746342,1129.3,1124.9,0.63800418]
[1760139515249,1.2746342,1129.5,1125.0,1.19590025]
[1760139515448,1.2746342,1129.4,1125.1,0.55789607]
[1760139515653,1.2746342,1128.7,1124.5,1.87100418]
[1760139515850,1.2746342,1128.8,1124.6,0.55718881]
[1760139516052,1.2746342,1128.9,1124.6,1.19519299]
[1760139516251,1.2746342,1129.0,1124.7,0.55718881]
[1760139516466,1.2746342,1129.2,1124.8,0.55718881]
[1760139516754,1.2746342,1129.3,1124.9,0.55718881]
[1760139517052,1.2746342,1129.3,1125.0,0.55718881]
[1760139517354,1.2746342,1129.5,1125.1,0.55718881]
[1760139517649,1.2746342,1129.3,1124.7,0.63800418]
[1760139517853,2.0980141,1130.5,1124.4,0.85759317]
[1760139517854,1.2746342,1129.2,1124.8,0.55671122]
[1760139518048,1.2746342,1129.4,1124.9,0.55671122]
[1760139518250,1.2746342,1129.4,1125.0,0.55671122]
[1760139518448,1.2746342,1129.4,1125.1,0.55671122]
[1760139518652,1.2746342,1129.4,1124.4,0.63800418]
[1760139518850,1.2746342,1129.6,1124.9,0.63800418]
[1760139519150,1.2746342,1129.7,1125.0,0.63800418]
[1760139519349,1.2746342,1129.9,1125.2,0.63800418]
[1760139519549,1.2746342,1129.9,1125.2,0.55676423]
[1760139519849,1.2746342,1129.8,1125.3,0.55676423]
[1760139520049,1.2746342,1129.7,1125.4,0.55676423]
[1760139520256,1.2746342,1130.2,1125.5,0.55676423]
[1760139520555,1.2746342,1130.0,1125.6,0.55676423]
[1760139520850,1.2746342,1129.7,1125.0,0.63800418]
[1760139521049,1.2746342,1129.7,1125.2,0.63800418]
[1760139521253,1.2746342,1129.8,1125.3,0.55610298]
[1760139521451,1.2746342,1129.6,1124.7,0.63800418]
[1760139521749,1.2746342,1129.7,1124.8,1.19450397]
[1760139522050,1.2746342,1129.8,1124.9,1.19450397]
[1760139522251,1.2746342,1129.6,1125.0,0.55649979]
[1760139522451,1.2746342,1129.5,1125.0,1.19450397]
[1760139522654,1.2746342,1129.7,1125.2,0.63800418]
[1760139522854,2.0980141,1130.8,1124.5,1.493]
[1760139522855,1.2746342,1129.8,1125.3,1.19450397]
[1760139523154,1.2746342,1130.2,1125.4,1.19450397]
[1760139523453,2.9372198,1132.4,1125.5,0.55649979]
[1760139523454,1.2746342,1129.9,1125.5,0.55649979]
[1760139523754,1.2746342,1129.7,1125.6,0.55649979]
[1760139523954,1.2746342,1130.0,1125.7,0.55649979]
[1760139524152,1.2746342,1130.0,1125.8,0.55649979]
[1760139524356,1.2746342,1130.0,1125.9,0.55649979]
[1760139524654,1.2746342,1130.0,1125.4,0.63800418]
[1760139525354,1.2746342,1130.0,1125.4,1.19440572]
[1760139525553,1.2746342,1130.0,1125.5,0.55640154]
[1760139525761,1.2746342,1129.7,1125.6,0.55640154]
[1760139525956,2.0980141,1131.3,1125.0,0.63800418]
[1760139525957,1.2746342,1129.5,1125.0,0.63800418]
[1760139526161,1.2746342,1129.4,1125.1,0.55674923]
[1760139526461,1.2746342,1129.5,1125.2,0.55674923]
[1760139526757,1.2746342,1129.6,1125.3,0.55674923]
[1760139526962,1.2746342,1129.6,1125.4,0.55674923]
[1760139527261,1.2746342,1129.6,1125.5,0.55674923]
[1760139527457,1.2746342,1129.6,1125.6,0.55674923]
[1760139527756,1.2746342,1129.7,1125.1,0.63800418]
[1760139527958,1.2746342,1129.4,1125.2,0.55710925]
[1760139528156,1.2746342,1129.3,1125.3,0.55710925]
[1760139528358,1.2746342,1129.5,1125.4,0.55710925]
[1760139528657,1.2746342,1129.6,1125.5,0.55710925]
[1760139528856,1.2746342,1129.6,1125.2,0.63800418]
[1760139528857,1.2746342,1129.6,1125.6,0.55710925]
[1760139529061,1.2746342,1129.7,1125.7,0.55710925]
[1760139529257,1.2746342,1129.8,1125.8,0.55710925]
[1760139529461,1.2746342,1129.9,1125.9,0.55710925]
[1760139529659,1.2746342,1129.9,1126.0,0.55710925]
[1760139529859,1.2746342,1129.9,1126.1,0.55710925]
[1760139530062,1.2746342,1130.2,1126.2,0.55710925]
[1760139530362,1.2746342,1130.1,1125.6,0.63800418]
[1760139530557,1.2746342,1130.1,1125.7,0.55614701]
[1760139530758,2.0980141,1131.4,1125.8,0.55614701]
[1760139530962,2.0980141,1131.5,1125.9,0.55614701]
[1760139531261,2.0980141,1131.5,1125.7,0.63800418]
[1760139531262,2.0980141,1131.5,1126.0,0.55614701]
[1760139531457,1.2963213,1130.0,1126.1,0.55614701]
[1760139531659,1.2963213,1130.1,1126.2,0.55614701]
[1760139531861,1.2963213,1130.1,1125.7,0.63800418]
[1760139531862,1.2963213,1130.1,1126.3,0.55614701]
[1760139532058,1.2963213,1130.1,1125.8,0.63800418]
[1760139532358,1.2963213,1129.5,1125.9,0.56519102]
[1760139532565,1.2963213,1129.6,1126.0,0.56519102]
[1760139532763,1.2963213,1129.6,1125.4,0.63800418]
[1760139533060,1.2963213,1129.3,1125.5,0.56558558]
[1760139533260,1.2963213,1129.0,1125.6,0.56558558]
[1760139533466,1.2963213,1129.6,1125.7,0.56558558]
[1760139533762,1.2963213,1130.1,1126.1,0.63800418]
[1760139533962,1.2963213,1129.6,1125.9,1.20358976]
[1760139534165,1.2963213,1129.3,1126.0,0.56563962]
[1760139534365,1.2963213,1129.3,1125.5,0.85759317]
[1760139534366,1.2963213,1129.3,1125.5,0.63800418]
[1760139534661,1.2963213,1129.4,1125.6,0.56669454]
[1760139534861,1.2963213,1129.2,1125.7,0.56669454]
[1760139535164,1.2963213,1129.2,1125.8,0.56669454]
[1760139535361,1.2963213,1129.0,1125.9,0.56669454]
[1760139535562,1.2963213,1129.1,1126.0,0.56669454]
[1760139535766,1.2963213,1129.2,1126.1,0.56669454]
[1760139535963,1.2963213,1129.8,1126.2,0.56669454]
[1760139536163,1.2963213,1129.9,1126.3,0.56669454]
[1760139536363,1.2963213,1129.9,1126.4,0.56669454]
[1760139536563,1.2963213,1130.0,1126.5,0.56669454]
[1760139536769,1.2963213,1130.0,1126.6,0.56669454]
[1760139536965,1.2963213,1130.1,1126.7,0.56669454]
[1760139537165,1.2963213,1130.0,1126.8,0.56669454]
[1760139537365,1.2963213,1129.8,1126.0,0.63800418]
[1760139537566,1.2963213,1129.8,1126.1,0.56724354]
[1760139537765,1.2963213,1129.7,1126.2,0.56724354]
[1760139537969,1.2963213,1129.8,1126.3,0.56724354]
[1760139538268,1.2963213,1129.7,1126.4,0.56724354]
[1760139538470,1.2963213,1129.5,1126.5,0.56724354]
[1760139538669,1.2963213,1129.5,1126.0,0.63800418]
[1760139538870,1.2963213,1129.6,1126.1,0.56808742]
[1760139539066,1.2963213,1129.5,1126.2,0.56808742]
[1760139539271,1.2963213,1129.5,1126.3,0.56808742]
[1760139539572,1.2963213,1129.4,1126.4,0.56808742]
[1760139539769,1.2963213,1129.3,1126.5,0.56808742]
[1760139539967,1.2963213,1129.2,1125.9,0.63800418]
[1760139540268,1.2963213,1129.4,1126.0,0.5679344]
[1760139540570,1.2963213,1129.4,1125.9,0.63800418]
[1760139540571,1.2963213,1129.3,1126.1,0.5679344]
[1760139540768,1.2963213,1129.3,1126.2,0.5679344]
[1760139541066,1.2963213,1129.5,1126.3,0.5679344]
[1760139541268,1.2963213,1129.1,1126.4,0.5679344]
[1760139541471,1.2963213,1128.9,1126.1,0.63800418]
[1760139541766,1.2963213,1128.9,1126.2,0.56787035]
[1760139541968,1.2963213,1129.1,1126.3,0.56787035]
[1760139542170,1.2963213,1129.1,1126.4,0.56787035]
[1760139542371,1.2963213,1129.0,1126.1,0.63800418]
[1760139542573,1.2963213,1129.1,1126.2,0.5528529]
[1760139542773,1.2963213,1128.6,1125.6,0.63800418]
[1760139543069,1.2963213,1129.1,1125.7,0.55365144]
[1760139543269,1.2963213,1129.0,1125.8,0.55365144]
[1760139543571,1.2963213,1129.0,1125.9,0.55365144]
[1760139543769,1.2963213,1129.0,1126.0,0.55365144]
[1760139543973,1.2963213,1128.7,1125.3,0.63800418]
[1760139544168,1.2963213,1128.7,1125.4,0.55536397]
[1760139544372,1.2963213,1128.5,1125.5,0.55536397]
[1760139544568,1.2963213,1128.5,1125.6,0.55536397]
[1760139544768,1.2963213,1128.5,1125.7,0.55536397]
[1760139544973,1.2963213,1128.7,1125.8,0.55536397]
[1760139545274,1.2963213,1128.7,1125.9,0.55536397]
[1760139545475,1.2963213,1128.8,1126.0,0.55536397]
[1760139545674,1.2963213,1128.8,1126.1,0.55536397]
[1760139545871,1.2963213,1128.8,1125.5,0.63800418]
[1760139546074,1.2963213,1128.8,1125.6,0.55489861]
[1760139546373,1.2963213,1128.5,1125.7,0.55489861]
[1760139546572,1.2963213,1128.9,1125.8,0.55489861]
[1760139546772,1.2963213,1128.6,1125.1,0.63800418]
[1760139546973,1.2963213,1128.3,1125.2,0.55480823]
[1760139547171,1.2963213,1128.3,1125.3,0.55480823]
[1760139547369,1.2963213,1128.0,1125.4,0.55480823]
[1760139547671,1.2963213,1128.4,1125.7,0.63800418]
[1760139547972,1.2963213,1128.8,1125.8,0.55480823]
[1760139548171,1.2963213,1128.8,1125.9,0.55480823]
[1760139548371,1.2963213,1128.8,1126.0,0.55480823]
[1760139548575,1.2963213,1128.7,1126.1,0.55480823]
[1760139548776,1.2963213,1128.3,1126.2,0.55592352]
[1760139548973,1.2963213,1128.4,1125.7,0.63800418]
[1760139549177,1.2963213,1128.5,1125.8,0.55559365]
[1760139549373,1.2963213,1128.2,1125.9,0.55559365]
[1760139549576,1.2963213,1128.4,1126.0,0.55559365]
[1760139549772,1.2963213,1128.7,1126.1,0.55559365]
[1760139550275,2.0980141,1129.8,1124.5,1.493]
[1760139550478,2.9372198,1130.3,1124.6,0.55596679]
[1760139550689,1.3122077,1128.6,1125.6,0.64901192]
[1760139550877,1.3122077,1128.6,1125.2,0.86534922]
[1760139550878,1.3122077,1129.1,1125.8,0.64901192]
[1760139551081,1.3122077,1128.7,1125.9,0.55596679]
[1760139551277,1.3122077,1128.8,1126.0,0.55596679]
[1760139551582,1.3122077,1128.9,1126.1,0.55596679]
[1760139551778,1.3122077,1128.9,1126.2,0.55596679]
[1760139551980,1.3122077,1128.9,1126.0,0.64901192]
[1760139551981,1.3122077,1129.0,1126.3,0.55596679]
[1760139552182,1.3122077,1128.9,1126.4,0.55596679]
[1760139552380,1.3122077,1128.8,1126.5,0.55596679]
[1760139552580,1.3122077,1128.8,1126.6,0.55596679]
[1760139552781,1.3122077,1129.6,1126.8,0.64901192]
[1760139552976,1.3122077,1129.9,1127.1,0.64901192]
[1760139553275,1.3122077,1130.3,1127.2,1.20497871]
[1760139553476,2.1870128,1131.3,1127.3,0.55596679]
[1760139553477,1.3122077,1129.6,1127.3,0.55596679]
[1760139553682,1.3122077,1129.3,1126.8,0.64901192]
[1760139553979,1.3122077,1129.4,1126.9,0.55439479]
[1760139554180,1.3122077,1129.7,1127.0,0.55439479]
[1760139554378,1.3122077,1129.7,1127.1,0.55439479]
[1760139554578,2.1870128,1131.0,1126.3,0.64901192]
[1760139554579,0.87382747,1129.0,1126.3,0.64901192]
[1760139554778,0.87382747,1128.8,1126.1,0.64901192]
[1760139554983,0.87382747,1128.7,1126.1,0.64901192]
[1760139555179,0.87382747,1128.7,1126.2,0.64901192]
[1760139555392,0.87382747,1128.9,1126.7,0.64901192]
[1760139555577,1.3122077,1129.9,1127.2,0.64901192]
[1760139555782,1.3122077,1129.8,1127.3,0.54607844]
[1760139556076,1.3122077,1129.9,1127.4,0.54607844]
[1760139556281,1.3122077,1130.2,1127.5,0.54607844]
[1760139556482,1.3122077,1130.4,1127.6,0.54607844]
[1760139556677,1.3122077,1130.3,1127.7,0.54607844]
[1760139556881,1.3122077,1130.2,1126.9,0.64901192]
[1760139557077,1.3122077,1130.1,1127.0,0.54561998]
[1760139557279,1.3122077,1130.2,1127.1,0.54561998]
[1760139557478,1.3122077,1130.5,1127.6,0.64901192]
[1760139557778,1.3122077,1130.7,1127.7,0.54561998]
[1760139557983,1.3122077,1130.3,1127.8,0.54561998]
[1760139558180,1.3122077,1130.5,1127.9,0.54561998]
[1760139558377,1.3122077,1130.6,1128.0,0.54561998]
[1760139558583,1.3122077,1130.6,1127.6,0.64901192]
[1760139558783,1.3122077,1130.7,1127.7,0.54350066]
[1760139558985,1.3122077,1130.7,1127.8,0.54350066]
[1760139559188,1.3122077,1130.8,1127.9,0.54350066]
[1760139559482,1.3122077,1130.6,1127.2,0.64901192]
[1760139559682,1.3122077,1130.3,1127.3,0.54298299]
[1760139560285,1.3122077,1130.3,1126.8,1.2980238]
[1760139560488,1.3122077,1130.3,1125.4,2.163373]
[1760139561088,2.1710735,1132.2,1127.8,0.64075764]
[1760139561288,2.1710735,1132.2,1127.9,0.54355498]
[1760139561589,3.0395029,1132.7,1128.0,0.54355498]
[1760139561788,3.0395029,1132.7,1127.9,0.64075764]
[1760139561789,3.0395029,1132.7,1128.1,0.54355498]
[1760139562090,2.1710735,1132.7,1128.2,0.54355498]
[1760139562285,2.1710735,1132.7,1127.7,0.64075764]
[1760139562488,2.1710735,1132.7,1127.8,0.57216124]
[1760139562785,2.1710735,1132.1,1127.9,0.57216124]
[1760139562991,2.1710735,1132.5,1128.0,0.57216124]
[1760139563186,2.1710735,1132.5,1128.1,0.57216124]
[1760139563390,2.1710735,1132.5,1128.2,0.57216124]
[1760139563587,2.1710735,1132.1,1127.4,0.64075764]
[1760139563792,2.1710735,1132.1,1127.5,0.57229594]
[1760139563989,2.1710735,1132.1,1127.6,0.57229594]
[1760139564187,2.1710735,1132.6,1127.9,0.64075764]
[1760139564387,2.1710735,1132.6,1127.7,0.57229594]
[1760139564388,2.1710735,1132.6,1128.0,0.57229594]
[1760139564688,2.1710735,1132.1,1127.6,0.64075764]
[1760139564893,2.1710735,1132.1,1127.7,0.57140362]
[1760139565192,2.1710735,1132.1,1127.7,1.741]
[1760139565393,2.1710735,1131.2,1127.7,1.741]
[1760139565593,2.1710735,1131.8,1127.7,1.741]
[1760139566492,2.1710735,1131.4,1127.7,1.741]
[1760139567093,2.1710735,1131.8,1127.7,1.741]
[1760139567688,2.1710735,1131.7,1127.7,1.741]
[1760139567892,2.1710735,1132.0,1127.7,1.741]
[1760139568589,2.1710735,1131.3,1127.7,1.741]
[1760139568989,2.1710735,1131.8,1127.7,1.741]
[1760139569391,2.1710735,1131.7,1127.7,1.741]
[1760139569792,2.1710735,1131.4,1127.7,1.741]
[1760139569991,2.1710735,1131.5,1127.7,1.741]
[1760139570591,2.1710735,1131.0,1127.7,1.741]
[1760139571091,2.1710735,1132.7,1127.7,1.741]
[1760139571991,2.1710735,1132.7,1127.8,0.57273696]
[1760139572193,2.1710735,1131.9,1127.9,0.57273696]
[1760139572396,2.1710735,1131.9,1128.0,0.5724369]
[1760139572594,2.1710735,1133.5,1128.1,0.5724369]
[1760139572790,2.1710735,1133.5,1127.7,1.741]
[1760139572791,2.1710735,1133.7,1128.2,0.5724369]
[1760139573090,2.1710735,1133.7,1128.3,0.57264774]
[1760139573391,2.1710735,1132.5,1127.9,0.63974058]
[1760139573591,2.1710735,1132.5,1127.7,2.59534352]
[1760139573592,2.1710735,1132.5,1128.0,0.57221138]
[1760139573792,2.1710735,1132.5,1127.7,1.741]
[1760139573793,2.1710735,1132.5,1128.1,0.57221138]
[1760139573995,2.1710735,1132.5,1127.7,1.741]
[1760139574292,2.1710735,1132.6,1127.8,0.57262031]
[1760139574495,2.1710735,1132.6,1127.7,1.741]
[1760139574893,2.1710735,1133.5,1127.7,1.741]
[1760139575092,2.1710735,1133.6,1127.8,0.57125194]
[1760139575295,2.1710735,1133.6,1127.7,1.741]
[1760139575496,2.1710735,1133.3,1127.8,0.57085605]
[1760139575696,2.1710735,1132.6,1127.9,0.57085605]
[1760139575992,2.1710735,1133.1,1128.0,0.57085605]
[1760139576196,2.1710735,1133.1,1128.1,0.57085605]
[1760139576396,2.1710735,1133.1,1128.2,0.57085605]
[1760139576696,2.1710735,1133.2,1127.7,1.741]
[1760139576890,2.1710735,1133.2,1127.8,0.56996338]
[1760139577091,2.1710735,1133.1,1127.9,0.56996338]
[1760139577291,2.1710735,1133.1,1128.0,0.56996338]
[1760139577493,2.1710735,1133.3,1128.1,0.56996338]
[1760139577696,2.1710735,1133.3,1127.7,1.741]
[1760139577893,2.1710735,1133.3,1127.8,0.57160633]
[1760139578092,2.1710735,1132.7,1127.9,0.57160633]
[1760139578294,2.1710735,1132.7,1127.7,1.741]
[1760139578795,2.1710735,1133.0,1127.8,0.57113915]
[1760139578998,2.1710735,1133.0,1127.9,0.57114886]
[1760139579297,2.1710735,1132.6,1128.0,0.57071243]
[1760139579497,2.1710735,1132.9,1128.1,0.57071243]
[1760139579696,2.1710735,1132.9,1127.7,1.741]
[1760139579899,2.1710735,1133.2,1127.8,0.57131995]
[1760139580198,2.1710735,1133.2,1127.7,1.741]
[1760139580394,2.1710735,1132.7,1127.8,0.57064295]
[1760139580597,2.1710735,1132.7,1127.9,0.57064295]
[1760139580797,2.1710735,1132.7,1128.0,0.57064295]
[1760139580995,2.1710735,1133.1,1128.1,0.56957717]
[1760139581199,2.1710735,1133.4,1128.2,0.56957717]
[1760139581396,2.1710735,1133.4,1127.7,1.741]
[1760139581599,2.1710735,1133.1,1127.8,0.56909265]
[1760139581797,2.1710735,1133.1,1127.7,1.741]
[1760139581798,2.1710735,1133.1,1127.9,0.56909265]
[1760139582001,2.1710735,1133.1,1128.0,0.56909265]
[1760139582200,2.1710735,1132.8,1128.1,0.56962635]
[1760139582398,2.1710735,1132.8,1127.7,1.741]
[1760139582599,2.1710735,1132.9,1127.8,0.56966829]
[1760139582800,2.1710735,1132.9,1127.9,0.56966829]
[1760139583003,2.1710735,1132.9,1127.7,1.741]
[1760139583204,2.1710735,1132.6,1127.8,0.57050394]
[1760139583400,2.1710735,1132.6,1127.7,1.741]
[1760139583699,2.1710735,1132.6,1127.8,0.57122763]
[1760139583905,2.1710735,1133.1,1127.7,1.741]
[1760139584404,2.1710735,1132.5,1127.7,1.741]
[1760139584902,2.1710735,1132.6,1127.7,1.741]
[1760139585300,2.1710735,1132.4,1127.7,1.741]
[1760139585904,2.1710735,1132.7,1127.7,1.741]
[1760139586208,2.1710735,1132.6,1127.7,1.741]
[1760139586504,2.1710735,1132.5,1127.7,1.741]
[1760139587005,2.1710735,1132.8,1127.7,1.741]
[1760139587503,2.1710735,1132.1,1127.8,0.57136694]
[1760139587704,2.1710735,1132.5,1127.9,0.5708378]
[1760139587901,2.1710735,1132.5,1128.0,0.5708378]
[1760139588106,2.1710735,1133.2,1128.1,1.21057838]
[1760139588301,2.1710735,1133.2,1128.2,0.5708378]
[1760139588502,2.1710735,1133.2,1128.3,0.5708378]
[1760139588805,2.1710735,1132.8,1128.4,0.5708378]
[1760139589004,2.1710735,1133.4,1128.5,0.5708378]
[1760139589304,1.2948179,1131.8,1127.9,0.63974058]
[1760139589506,1.2948179,1131.6,1128.0,1.19091868]
[1760139589702,2.1710735,1132.7,1128.3,0.63974058]
[1760139589703,1.2948179,1131.9,1128.3,0.63974058]
[1760139589908,1.2948179,1132.0,1128.4,0.5511781]
[1760139590107,1.2948179,1132.3,1128.5,0.5511781]
[1760139590407,1.2948179,1132.2,1128.1,0.63974058]
[1760139590607,1.2948179,1132.1,1128.2,0.54281232]
[1760139590905,1.2948179,1132.3,1128.1,0.63974058]
[1760139591107,2.1710735,1133.6,1127.7,1.741]
[1760139591108,0.86218321,1131.9,1128.0,0.63974058]
[1760139591313,2.1710735,1133.6,1128.0,0.63974058]
[1760139591314,0.86218321,1132.1,1128.0,0.63974058]
[1760139591513,0.86218321,1132.2,1128.1,0.63974058]
[1760139591713,0.86218321,1131.9,1128.3,0.63974058]
[1760139591914,0.86218321,1132.0,1128.2,0.63974058]
[1760139592109,1.2948179,1132.3,1128.2,0.63974058]
[1760139592110,0.86218321,1132.1,1128.2,0.63974058]
[1760139592313,0.86218321,1132.1,1127.7,1.741]
[1760139592314,0.86218321,1132.1,1128.1,0.63974058]
[1760139592514,0.86218321,1132.3,1128.2,0.63974058]
[1760139592815,0.86218321,1132.3,1128.1,0.63974058]
[1760139593215,0.86218321,1132.4,1128.2,0.63974058]
[1760139593416,0.86218321,1132.5,1128.3,0.63974058]
[1760139593614,0.86218321,1132.5,1128.4,0.63974058]
[1760139594013,0.86218321,1132.5,1128.2,0.63974058]
[1760139594311,1.2948179,1132.9,1127.7,1.741]
[1760139594312,0.86218321,1132.6,1128.1,0.63974058]
[1760139594817,0.86218321,1132.4,1128.3,0.63974058]
[1760139595213,0.86218321,1132.5,1128.3,0.63974058]
[1760139595415,0.86218321,1132.4,1128.1,0.63974058]
[1760139595716,0.86218321,1132.1,1128.3,0.63974058]
[1760139595911,0.86218321,1132.6,1128.1,0.63974058]
[1760139596112,0.86218321,1132.1,1128.3,0.63974058]
[1760139596311,0.86218321,1132.6,1128.1,0.63974058]
[1760139596513,0.86218321,1132.7,1128.1,0.63974058]
[1760139596712,0.86218321,1132.5,1128.0,0.63974058]
[1760139597218,0.86218321,1132.6,1128.1,0.63974058]
[1760139597518,0.86218321,1132.9,1128.5,0.63974058]
[1760139597716,0.86218321,1132.6,1128.2,0.63974058]
[1760139597915,1.2948179,1132.9,1128.2,0.63974058]
[1760139597916,0.86218321,1132.7,1128.6,1.221]
[1760139598117,0.86218321,1132.4,1128.6,1.221]
[1760139598319,0.86218321,1131.7,1128.6,1.221]
[1760139598816,0.86218321,1131.5,1128.6,1.221]
[1760139599120,0.86218321,1131.6,1128.6,1.221]
[1760139599621,0.86218321,1131.5,1128.6,1.221]
[1760139599822,0.86218321,1131.2,1128.6,1.221]
[1760139600121,0.86218321,1131.1,1128.6,1.221]
[1760139600319,3.0395029,1133.1,1128.6,1.221]
[1760139600320,0.86218321,1130.9,1128.6,1.221]
[1760139600520,0.86218321,1131.3,1128.6,1.221]
[1760139600722,0.86218321,1131.6,1128.6,1.221]
[1760139601222,0.86218321,1131.2,1128.6,1.221]
[1760139601423,0.86218321,1131.6,1128.6,1.221]
[1760139601622,0.86218321,1131.1,1128.6,1.221]
[1760139602021,0.86218321,1131.4,1128.6,1.221]
[1760139602318,0.86218321,1131.2,1128.6,1.221]
[1760139602720,0.86218321,1131.6,1128.6,1.221]
[1760139602926,0.86218321,1131.6,1126.9,0.63974058]
[1760139603317,0.86218321,1130.8,1126.7,0.63974058]
[1760139603520,0.86218321,1131.0,1126.6,0.63974058]
[1760139603821,0.86218321,1130.5,1126.5,0.63974058]
[1760139604022,0.86218321,1130.6,1126.5,0.63974058]
[1760139604220,0.86218321,1130.8,1126.9,0.63602596]
[1760139604723,0.86218321,1131.1,1126.9,0.63602596]
[1760139604920,0.86218321,1130.7,1126.8,0.63602596]
[1760139605121,0.86218321,1130.8,1126.8,0.63602596]
[1760139605419,0.86218321,1130.9,1126.7,0.63602596]
[1760139606020,0.86218321,1131.2,1127.2,0.63602596]
[1760139606224,0.86218321,1131.1,1127.2,0.63602596]
[1760139606722,0.86218321,1131.4,1127.2,0.63602596]
[1760139606922,3.0395029,1133.1,1125.0,2.1358588]
[1760139606923,0.86218321,1131.6,1127.4,0.63602596]
[1760139607126,0.86218321,1131.4,1127.6,0.63602596]
[1760139607522,0.86218321,1131.3,1127.6,0.63602596]
[1760139607724,0.86218321,1131.4,1127.8,0.63602596]
[1760139607924,0.86218321,1131.5,1127.5,0.63602596]
[1760139608227,0.86218321,1131.5,1127.6,0.63602596]
[1760139608428,0.86218321,1131.5,1127.6,0.63638753]
[1760139608925,0.86218321,1131.4,1127.6,0.63638753]
[1760139609226,0.86218321,1130.6,1127.3,0.63638753]
[1760139609525,0.86218321,1130.6,1127.1,0.63638753]
[1760139609727,0.86218321,1130.8,1127.3,0.63638753]
[1760139609927,0.86218321,1130.3,1126.9,0.63638753]
[1760139610124,0.86218321,1129.8,1126.5,0.63638753]
[1760139610328,0.86218321,1129.9,1126.5,0.63638753]
[1760139610530,0.86218321,1130.2,1126.5,0.63638753]
[1760139610829,3.0395029,1131.6,1126.0,0.63638753]
[1760139610830,0.86218321,1129.3,1126.0,0.63638753]
[1760139611030,0.86218321,1129.4,1126.0,0.63638753]
[1760139611227,0.86218321,1129.2,1125.9,0.63638753]
[1760139611426,0.86218321,1129.3,1126.0,0.63638753]
[1760139611825,0.86218321,1129.3,1125.9,0.63638753]
[1760139612029,0.86218321,1129.4,1126.1,0.63638753]
[1760139612228,0.86218321,1129.8,1126.1,0.63638753]
[1760139612428,0.86218321,1129.5,1126.1,0.63638753]
[1760139612630,0.86218321,1129.0,1125.7,0.63638753]
[1760139612828,0.86218321,1128.9,1125.6,0.63638753]
[1760139613028,0.86218321,1128.8,1125.5,0.63638753]
[1760139613428,0.86218321,1128.9,1125.5,0.63638753]
[1760139613627,0.86218321,1128.8,1125.6,0.63638753]
[1760139613930,0.86218321,1129.3,1125.7,0.63638753]
[1760139614131,0.86218321,1129.6,1126.0,0.63638753]
[1760139614332,0.86218321,1129.4,1126.0,0.63638753]
[1760139614531,0.86218321,1129.7,1126.1,0.63638753]
[1760139614733,0.86218321,1129.7,1126.4,0.63638753]
[1760139614931,0.86218321,1129.6,1126.3,0.63638753]
[1760139615133,0.86218321,1129.7,1126.2,0.63638753]
[1760139615430,0.86218321,1129.9,1126.1,0.63638753]
[1760139615732,0.86218321,1129.7,1126.1,0.63638753]
[1760139615932,0.86218321,1129.4,1125.9,0.63638753]
[1760139616332,0.86218321,1129.5,1125.8,0.63638753]
[1760139616633,0.86218321,1129.4,1125.8,0.63638753]
[1760139616831,0.86218321,1129.6,1125.8,0.63638753]
[1760139617037,0.86218321,1129.8,1125.9,0.63638753]
[1760139617433,0.86218321,1129.8,1125.5,0.85434352]
[1760139618031,1.2948179,1130.2,1125.2,1.2815152]
[1760139618531,2.1710735,1131.8,1123.4,2.1358588]
[1760139619932,0.86592942,1130.1,1126.4,0.64013354]
[1760139620134,4.342147,1133.3,1122.6,2.9902023]
[1760139620135,0.86592942,1131.5,1127.8,0.64013354]
[1760139620331,0.86592942,1131.6,1127.8,0.64013354]
[1760139620630,0.86592942,1131.7,1127.7,0.64013354]
[1760139621132,0.86592942,1131.1,1127.5,0.64013354]
[1760139621330,0.86592942,1130.8,1127.5,0.64013354]
[1760139621535,0.86592942,1130.7,1127.1,0.64013354]
[1760139621734,0.86592942,1130.8,1127.4,0.64013354]
[1760139621936,0.86592942,1131.2,1127.5,0.64013354]
[1760139622131,0.86592942,1130.9,1127.6,0.64013354]
[1760139622335,0.86592942,1130.9,1127.3,0.85351138]
[1760139622336,0.86592942,1130.8,1127.4,0.64013354]
[1760139622536,0.86592942,1130.8,1127.3,0.64013354]
[1760139622939,0.86592942,1130.8,1127.0,0.85351138]
[1760139622940,0.86592942,1131.2,1127.4,0.64013354]
[1760139623133,0.86592942,1130.8,1127.4,0.64013354]